[Event "Titled Tuesday Blitz March 07 Late 2023"]
[White "Krishnan, Varun"]
[Black "Bogaudinov, Rushan"]
[WhiteFideId "5054508"]
[BlackFideId "4129288"]
[WhiteElo "2541"]
[BlackElo "1949"]
[Result "0-1"]
[Round "03"]
[TimeControl "180+2"]
[Date "2023.03.07"]
[WhiteClock "0:00:05"]
[BlackClock "0:00:12"]

1. d4 {[%clk 0:02:57]}  Nf6 {[%clk 0:02:49]} 2. c4 {[%clk 0:02:56]}  e6 {[%clk 0:02:49]} 3. Nf3 {[%clk 0:02:56]}  d5 {[%clk 0:02:47]} 4. g3 {[%clk 0:02:50]}  Bb4+ {[%clk 0:02:45]} 5. Bd2 {[%clk 0:02:49]}  a5 {[%clk 0:02:45]} 6. Bg2 {[%clk 0:02:48]}  O-O {[%clk 0:02:44]} 7. Qc2 {[%clk 0:02:48]}  Bd7 {[%clk 0:02:34]} 8. O-O {[%clk 0:02:47]}  Bc6 {[%clk 0:02:27]} 9. Ne5 {[%clk 0:02:45]}  dxc4 {[%clk 0:02:26]} 10. Nxc6 {[%clk 0:02:43]}  Nxc6 {[%clk 0:02:22]} 11. Bxc6 {[%clk 0:02:42]}  bxc6 {[%clk 0:02:21]} 12. Qxc4 {[%clk 0:02:43]}  Qd5 {[%clk 0:02:13]} 13. Qxd5 {[%clk 0:02:27]}  cxd5 {[%clk 0:02:13]} 14. Nc3 {[%clk 0:02:23]}  c5 {[%clk 0:02:08]} 15. a3 {[%clk 0:02:13]}  Bxc3 {[%clk 0:02:07]} 16. bxc3 {[%clk 0:02:13]}  Ne4 {[%clk 0:02:05]} 17. Rfd1 {[%clk 0:02:12]}  Nxd2 {[%clk 0:01:55]} 18. Rxd2 {[%clk 0:02:13]}  Rab8 {[%clk 0:01:55]} 19. Raa2 {[%clk 0:01:27]}  c4 {[%clk 0:01:47]} 20. Rdb2 {[%clk 0:01:24]}  Rb3 {[%clk 0:01:44]} 21. Rc2 {[%clk 0:01:06]}  f5 {[%clk 0:01:29]} 22. f4 {[%clk 0:01:05]}  Rfb8 {[%clk 0:01:27]} 23. Kf2 {[%clk 0:01:02]}  Kf7 {[%clk 0:01:24]} 24. h3 {[%clk 0:00:57]}  Rb1 {[%clk 0:01:21]} 25. h4 {[%clk 0:00:50]}  R8b3 {[%clk 0:01:17]} 26. Kg2 {[%clk 0:00:45]}  h6 {[%clk 0:01:11]} 27. Kf2 {[%clk 0:00:38]}  g5 {[%clk 0:01:10]} 28. hxg5 {[%clk 0:00:37]}  hxg5 {[%clk 0:01:10]} 29. Kg2 {[%clk 0:00:35]}  Kg6 {[%clk 0:01:10]} 30. e3 {[%clk 0:00:22]}  Kh5 {[%clk 0:01:09]} 31. Kf3 {[%clk 0:00:21]}  Rf1+ {[%clk 0:00:59]} 32. Kg2 {[%clk 0:00:20]}  Rd1 {[%clk 0:00:56]} 33. Rab2 {[%clk 0:00:17]}  Kg4 {[%clk 0:00:47]} 34. fxg5 {[%clk 0:00:17]}  Kxg5 {[%clk 0:00:44]} 35. Kf3 {[%clk 0:00:17]}  Rd3 {[%clk 0:00:42]} 36. Rh2 {[%clk 0:00:06]}  Rxb2 {[%clk 0:00:39]} 37. Rxb2 {[%clk 0:00:05]}  Rxc3 {[%clk 0:00:40]} 38. Rb6 {[%clk 0:00:05]}  Kf6 {[%clk 0:00:38]} 39. a4 {[%clk 0:00:05]}  Ra3 {[%clk 0:00:37]} 40. Kf4 {[%clk 0:00:05]}  Rxa4 {[%clk 0:00:35]} 41. g4 {[%clk 0:00:05]}  fxg4 {[%clk 0:00:35]} 42. e4 {[%clk 0:00:05]}  c3 {[%clk 0:00:28]} 43. e5+ {[%clk 0:00:05]}  Ke7 {[%clk 0:00:28]} 44. Rb7+ {[%clk 0:00:05]}  Kd8 {[%clk 0:00:27]} 45. Kg5 {[%clk 0:00:04]}  c2 {[%clk 0:00:24]} 46. Kf6 {[%clk 0:00:04]}  c1=Q {[%clk 0:00:22]} 47. Rg7 {[%clk 0:00:04]}  Qc6 {[%clk 0:00:18]} 48. Rg8+ {[%clk 0:00:03]}  Kc7 {[%clk 0:00:18]} 49. Rg7+ {[%clk 0:00:04]}  Kb6 {[%clk 0:00:18]} 50. Rxg4 {[%clk 0:00:03]}  Rc4 {[%clk 0:00:17]} 51. Ke7 {[%clk 0:00:03]}  a4 {[%clk 0:00:16]} 52. Rg8 {[%clk 0:00:03]}  Rxd4 {[%clk 0:00:15]} 53. Kd8 {[%clk 0:00:02]}  Qa8+ {[%clk 0:00:15]} 54. Kd7 {[%clk 0:00:02]}  Qxg8 {[%clk 0:00:13]} 55. Kd6 {[%clk 0:00:03]}  a3 {[%clk 0:00:13]} 56. Ke7 {[%clk 0:00:02]}  a2 {[%clk 0:00:13]} 57. Kf6 {[%clk 0:00:03]}  Rf4+ {[%clk 0:00:12]} 58. Ke7 {[%clk 0:00:04]}  Rf7+ {[%clk 0:00:12]} 59. Kd6 {[%clk 0:00:05]}  Qf8+ {[%clk 0:00:12]} 60. Kxe6 {[%clk 0:00:05]}  Qe7+ {[%clk 0:00:12]} 61. Kxd5 {[%clk 0:00:06]}  a1=Q {[%clk 0:00:12]} 62. e6 {[%clk 0:00:05]}  Rf5+ {[%clk 0:00:12]} 63. Ke4 {[%clk 0:00:05]}  Qxe6+ {[%clk 0:00:12]} 64. Kd3 {[%clk 0:00:05]}  Rd5+ {[%clk 0:00:13]} 65. Kc4 {[%clk 0:00:05]}  Qe4+ {[%clk 0:00:13]} 66. Kb3 {[%clk 0:00:05]}  Qd3+ {[%clk 0:00:11]} 67. Kb4 {[%clk 0:00:05]}  Qac3+ {[%clk 0:00:11]} 68. Ka4 {[%clk 0:00:05]}  Ra5# {[%clk 0:00:12]} 0-1


[Site "https://www.chess.com"]

[Event "Titled Tuesday Blitz March 07 Late 2023"]
[White "Kovacs, Klara"]
[Black "Reprintsev, Alexander"]
[WhiteFideId "733210"]
[BlackFideId "14100541"]
[WhiteElo "2179"]
[BlackElo "2229"]
[Result "0-1"]
[Round "03"]
[TimeControl "180+2"]
[Date "2023.03.07"]
[WhiteClock "0:00:04"]
[BlackClock "0:00:23"]

1. d4 {[%clk 0:02:42]}  d5 {[%clk 0:02:59]} 2. Nf3 {[%clk 0:02:42]}  Nc6 {[%clk 0:02:58]} 3. g3 {[%clk 0:02:41]}  Bf5 {[%clk 0:02:57]} 4. Bg2 {[%clk 0:02:39]}  Nb4 {[%clk 0:02:57]} 5. Na3 {[%clk 0:02:39]}  e6 {[%clk 0:02:57]} 6. c3 {[%clk 0:02:37]}  Nc6 {[%clk 0:02:56]} 7. Nc2 {[%clk 0:02:37]}  h6 {[%clk 0:02:56]} 8. b4 {[%clk 0:02:37]}  Nf6 {[%clk 0:02:53]} 9. O-O {[%clk 0:02:37]}  Be7 {[%clk 0:02:53]} 10. a4 {[%clk 0:02:35]}  O-O {[%clk 0:02:52]} 11. Bf4 {[%clk 0:02:33]}  Bd6 {[%clk 0:02:45]} 12. Ne5 {[%clk 0:02:29]}  Nd7 {[%clk 0:02:42]} 13. Nxc6 {[%clk 0:02:28]}  bxc6 {[%clk 0:02:41]} 14. Ne1 {[%clk 0:02:26]}  e5 {[%clk 0:02:40]} 15. dxe5 {[%clk 0:02:25]}  Bxe5 {[%clk 0:02:40]} 16. Bxe5 {[%clk 0:02:23]}  Nxe5 {[%clk 0:02:41]} 17. Nd3 {[%clk 0:02:23]}  Nxd3 {[%clk 0:02:19]} 18. exd3 {[%clk 0:02:23]}  Qf6 {[%clk 0:02:19]} 19. Qd2 {[%clk 0:02:20]}  Rfe8 {[%clk 0:02:19]} 20. Rae1 {[%clk 0:02:17]}  g5 {[%clk 0:02:11]} 21. h3 {[%clk 0:00:57]}  Rab8 {[%clk 0:02:04]} 22. Kh2 {[%clk 0:00:48]}  Kg7 {[%clk 0:02:04]} 23. Re3 {[%clk 0:00:40]}  Rxe3 {[%clk 0:01:51]} 24. Qxe3 {[%clk 0:00:40]}  Qxc3 {[%clk 0:01:42]} 25. Rc1 {[%clk 0:00:30]}  Qf6 {[%clk 0:01:32]} 26. Qxa7 {[%clk 0:00:27]}  Rxb4 {[%clk 0:01:31]} 27. Qxc7 {[%clk 0:00:27]}  Rb2 {[%clk 0:01:11]} 28. Rxc6 {[%clk 0:00:26]}  Qd4 {[%clk 0:01:11]} 29. Rc2 {[%clk 0:00:19]}  Rb3 {[%clk 0:00:53]} 30. a5 {[%clk 0:00:19]}  Bxd3 {[%clk 0:00:50]} 31. Rd2 {[%clk 0:00:18]}  Ra3 {[%clk 0:00:45]} 32. Bf1 {[%clk 0:00:11]}  Qc4 {[%clk 0:00:44]} 33. Qb6 {[%clk 0:00:08]}  Bxf1 {[%clk 0:00:38]} 34. a6 {[%clk 0:00:08]}  Rxa6 {[%clk 0:00:37]} 35. Qb2+ {[%clk 0:00:07]}  Rf6 {[%clk 0:00:35]} 36. Rc2 {[%clk 0:00:05]}  Qe4 {[%clk 0:00:34]} 37. f3 {[%clk 0:00:05]}  Qxf3 {[%clk 0:00:33]} 38. Rd2 {[%clk 0:00:04]}  Bd3 {[%clk 0:00:23]} 0-1


[Site "https://www.chess.com"]

[Event "Titled Tuesday Blitz March 07 Late 2023"]
[White "Coelho, Ramyres Santana"]
[Black "Kavutskiy, Konstantin"]
[WhiteFideId "2120690"]
[BlackFideId "2026384"]
[WhiteElo "1888"]
[BlackElo "2369"]
[Result "0-1"]
[Round "03"]
[TimeControl "180+2"]
[Date "2023.03.07"]
[WhiteClock "0:00:39"]
[BlackClock "0:01:34"]

1. e4 {[%clk 0:02:59]}  c5 {[%clk 0:02:59]} 2. Nf3 {[%clk 0:02:58]}  Nc6 {[%clk 0:03:00]} 3. d4 {[%clk 0:02:58]}  cxd4 {[%clk 0:03:01]} 4. c3 {[%clk 0:02:59]}  dxc3 {[%clk 0:02:53]} 5. Nxc3 {[%clk 0:03:00]}  e6 {[%clk 0:02:53]} 6. Bc4 {[%clk 0:03:00]}  Nf6 {[%clk 0:02:51]} 7. O-O {[%clk 0:03:00]}  d6 {[%clk 0:02:49]} 8. Qe2 {[%clk 0:03:00]}  a6 {[%clk 0:02:46]} 9. Rd1 {[%clk 0:03:00]}  Qc7 {[%clk 0:02:46]} 10. Bf4 {[%clk 0:02:58]}  h6 {[%clk 0:02:40]} 11. Rac1 {[%clk 0:02:58]}  e5 {[%clk 0:02:30]} 12. Bg3 {[%clk 0:02:53]}  Be7 {[%clk 0:02:23]} 13. Nd5 {[%clk 0:02:49]}  Qd8 {[%clk 0:02:23]} 14. Nxe7 {[%clk 0:02:43]}  Qxe7 {[%clk 0:02:23]} 15. Nh4 {[%clk 0:02:38]}  Be6 {[%clk 0:02:15]} 16. Nf5 {[%clk 0:02:37]}  Bxf5 {[%clk 0:02:14]} 17. exf5 {[%clk 0:02:38]}  O-O {[%clk 0:02:13]} 18. Rc3 {[%clk 0:02:31]}  Rfd8 {[%clk 0:02:07]} 19. Bh4 {[%clk 0:02:20]}  Rac8 {[%clk 0:01:53]} 20. Rg3 {[%clk 0:02:16]}  Kf8 {[%clk 0:01:49]} 21. Rdd3 {[%clk 0:02:02]}  Nd4 {[%clk 0:01:47]} 22. Rxd4 {[%clk 0:01:57]}  exd4 {[%clk 0:01:46]} 23. Qxe7+ {[%clk 0:01:49]}  Kxe7 {[%clk 0:01:46]} 24. Bf1 {[%clk 0:01:44]}  Rc1 {[%clk 0:01:44]} 25. Rxg7 {[%clk 0:01:37]}  d3 {[%clk 0:01:43]} 26. Rg3 {[%clk 0:01:11]}  d2 {[%clk 0:01:42]} 27. Re3+ {[%clk 0:01:12]}  Kf8 {[%clk 0:01:37]} 28. Rd3 {[%clk 0:01:03]}  d1=Q {[%clk 0:01:37]} 29. Rxd1 {[%clk 0:01:04]}  Rxd1 {[%clk 0:01:38]} 30. Bxf6 {[%clk 0:01:04]}  Rc8 {[%clk 0:01:38]} 31. Bc3 {[%clk 0:01:02]}  d5 {[%clk 0:01:39]} 32. g3 {[%clk 0:00:49]}  d4 {[%clk 0:01:39]} 33. Bb4+ {[%clk 0:00:50]}  Kg7 {[%clk 0:01:39]} 34. Kg2 {[%clk 0:00:50]}  d3 {[%clk 0:01:38]} 35. Bc3+ {[%clk 0:00:47]}  Rxc3 {[%clk 0:01:39]} 36. bxc3 {[%clk 0:00:48]}  d2 {[%clk 0:01:40]} 37. Be2 {[%clk 0:00:46]}  Re1 {[%clk 0:01:40]} 38. Bf3 {[%clk 0:00:44]}  b5 {[%clk 0:01:36]} 39. g4 {[%clk 0:00:43]}  Kf6 {[%clk 0:01:34]} 40. h4 {[%clk 0:00:43]}  d1=Q {[%clk 0:01:34]} 41. Bxd1 {[%clk 0:00:43]}  Rxd1 {[%clk 0:01:34]} 42. f4 {[%clk 0:00:44]}  Rd3 {[%clk 0:01:34]} 43. g5+ {[%clk 0:00:38]}  hxg5 {[%clk 0:01:33]} 44. fxg5+ {[%clk 0:00:39]}  Kxf5 {[%clk 0:01:34]} 0-1


[Site "https://www.chess.com"]

[Event "Titled Tuesday Blitz March 07 Late 2023"]
[White "Pert, Richard G"]
[Black "Mbonu, David"]
[WhiteFideId "404748"]
[BlackFideId "30927420"]
[WhiteElo "2441"]
[BlackElo "2346"]
[Result "0-1"]
[Round "03"]
[TimeControl "180+2"]
[Date "2023.03.07"]
[WhiteClock "0:00:07"]
[BlackClock "0:00:19"]

1. Nf3 {[%clk 0:02:56]}  Nf6 {[%clk 0:02:53]} 2. c4 {[%clk 0:02:55]}  e6 {[%clk 0:02:52]} 3. Nc3 {[%clk 0:02:55]}  d5 {[%clk 0:02:53]} 4. d4 {[%clk 0:02:53]}  a6 {[%clk 0:02:50]} 5. g4 {[%clk 0:02:48]}  Nxg4 {[%clk 0:02:41]} 6. Rg1 {[%clk 0:02:48]}  Nf6 {[%clk 0:02:25]} 7. c5 {[%clk 0:02:47]}  b6 {[%clk 0:02:24]} 8. cxb6 {[%clk 0:02:36]}  cxb6 {[%clk 0:02:24]} 9. Bf4 {[%clk 0:02:37]}  Nc6 {[%clk 0:02:24]} 10. e3 {[%clk 0:02:36]}  Bd7 {[%clk 0:02:18]} 11. Rc1 {[%clk 0:02:36]}  b5 {[%clk 0:02:16]} 12. Bd3 {[%clk 0:02:35]}  Rc8 {[%clk 0:02:10]} 13. a4 {[%clk 0:02:33]}  b4 {[%clk 0:02:10]} 14. Ne2 {[%clk 0:02:33]}  Qb6 {[%clk 0:02:08]} 15. b3 {[%clk 0:02:13]}  Ne4 {[%clk 0:02:05]} 16. Nd2 {[%clk 0:02:05]}  f5 {[%clk 0:02:01]} 17. f3 {[%clk 0:02:03]}  Nf6 {[%clk 0:02:00]} 18. Kf2 {[%clk 0:01:59]}  g6 {[%clk 0:01:58]} 19. Be5 {[%clk 0:01:53]}  Nxe5 {[%clk 0:01:50]} 20. Rxc8+ {[%clk 0:01:50]}  Bxc8 {[%clk 0:01:50]} 21. dxe5 {[%clk 0:01:51]}  Nd7 {[%clk 0:01:51]} 22. f4 {[%clk 0:01:49]}  Bc5 {[%clk 0:01:49]} 23. Rg3 {[%clk 0:01:36]}  a5 {[%clk 0:01:47]} 24. Qc1 {[%clk 0:01:34]}  Ba6 {[%clk 0:01:46]} 25. Bxa6 {[%clk 0:01:30]}  Qxa6 {[%clk 0:01:47]} 26. Nf3 {[%clk 0:01:27]}  Qd3 {[%clk 0:01:43]} 27. Nfd4 {[%clk 0:01:25]}  Kf7 {[%clk 0:01:40]} 28. h4 {[%clk 0:01:18]}  h5 {[%clk 0:01:20]} 29. Qg1 {[%clk 0:00:59]}  Rg8 {[%clk 0:01:05]} 30. Qc1 {[%clk 0:00:47]}  Rc8 {[%clk 0:01:00]} 31. Rf3 {[%clk 0:00:24]}  Nb6 {[%clk 0:00:48]} 32. Qg1 {[%clk 0:00:23]}  Be7 {[%clk 0:00:46]} 33. Kg3 {[%clk 0:00:17]}  Nd7 {[%clk 0:00:42]} 34. Kh3 {[%clk 0:00:17]}  Nc5 {[%clk 0:00:42]} 35. Rg3 {[%clk 0:00:17]}  Rg8 {[%clk 0:00:41]} 36. Qg2 {[%clk 0:00:14]}  Ne4 {[%clk 0:00:41]} 37. Rf3 {[%clk 0:00:14]}  Nd2 {[%clk 0:00:40]} 38. Rg3 {[%clk 0:00:13]}  Ne4 {[%clk 0:00:41]} 39. Rf3 {[%clk 0:00:13]}  Rc8 {[%clk 0:00:33]} 40. Rf1 {[%clk 0:00:11]}  Qxe3+ {[%clk 0:00:23]} 41. Rf3 {[%clk 0:00:11]}  Qd2 {[%clk 0:00:22]} 42. Nxe6 {[%clk 0:00:12]}  Kxe6 {[%clk 0:00:21]} 43. Qxg6+ {[%clk 0:00:12]}  Kd7 {[%clk 0:00:20]} 44. Qxf5+ {[%clk 0:00:12]}  Kd8 {[%clk 0:00:21]} 45. e6 {[%clk 0:00:10]}  Rc2 {[%clk 0:00:19]} 46. Qxh5 {[%clk 0:00:07]}  Qxe2 {[%clk 0:00:18]} 47. Qxd5+ {[%clk 0:00:07]}  Ke8 {[%clk 0:00:18]} 48. Qh5+ {[%clk 0:00:05]}  Kd8 {[%clk 0:00:17]} 49. Qd5+ {[%clk 0:00:05]}  Kc8 {[%clk 0:00:18]} 50. Qd7+ {[%clk 0:00:04]}  Kb8 {[%clk 0:00:18]} 51. Qe8+ {[%clk 0:00:05]}  Rc8 {[%clk 0:00:16]} 52. Qb5+ {[%clk 0:00:05]}  Qxb5 {[%clk 0:00:16]} 53. axb5 {[%clk 0:00:05]}  Rc3 {[%clk 0:00:15]} 54. Kg4 {[%clk 0:00:05]}  Nf6+ {[%clk 0:00:14]} 55. Kg3 {[%clk 0:00:05]}  Nh5+ {[%clk 0:00:15]} 56. Kg4 {[%clk 0:00:04]}  Nf6+ {[%clk 0:00:15]} 57. Kg3 {[%clk 0:00:05]}  Ne4+ {[%clk 0:00:16]} 58. Kg4 {[%clk 0:00:05]}  Rxf3 {[%clk 0:00:17]} 59. Kxf3 {[%clk 0:00:05]}  Nd2+ {[%clk 0:00:18]} 60. Ke2 {[%clk 0:00:03]}  Nxb3 {[%clk 0:00:19]} 61. f5 {[%clk 0:00:04]}  Bxh4 {[%clk 0:00:17]} 62. b6 {[%clk 0:00:04]}  Bf6 {[%clk 0:00:18]} 63. Kd3 {[%clk 0:00:04]}  Nc5+ {[%clk 0:00:18]} 64. Kc4 {[%clk 0:00:05]}  b3 {[%clk 0:00:18]} 65. Kxc5 {[%clk 0:00:05]}  b2 {[%clk 0:00:18]} 66. Kd6 {[%clk 0:00:06]}  b1=Q {[%clk 0:00:19]} 67. e7 {[%clk 0:00:07]}  Qxb6+ {[%clk 0:00:19]} 68. Kd7 {[%clk 0:00:06]}  Qc7+ {[%clk 0:00:19]} 69. Ke8 {[%clk 0:00:07]}  Qxe7# {[%clk 0:00:19]} 0-1


[Site "https://www.chess.com"]

[Event "Titled Tuesday Blitz March 07 Late 2023"]
[White "Paspuel, Trosky"]
[Black "Risteski, Emil"]
[WhiteFideId "3602150"]
[BlackFideId "15005267"]
[WhiteElo "2332"]
[BlackElo "2251"]
[Result "0-1"]
[Round "03"]
[TimeControl "180+2"]
[Date "2023.03.07"]
[WhiteClock "0:00:19"]
[BlackClock "0:00:37"]

1. c4 {[%clk 0:03:00]}  d6 {[%clk 0:02:55]} 2. Nc3 {[%clk 0:03:00]}  e5 {[%clk 0:02:56]} 3. g3 {[%clk 0:03:00]}  f5 {[%clk 0:02:55]} 4. Nf3 {[%clk 0:02:57]}  Nf6 {[%clk 0:02:55]} 5. d4 {[%clk 0:02:56]}  e4 {[%clk 0:02:56]} 6. Nh4 {[%clk 0:02:56]}  c6 {[%clk 0:02:53]} 7. Ng2 {[%clk 0:02:48]}  Be7 {[%clk 0:02:51]} 8. Bg5 {[%clk 0:02:41]}  O-O {[%clk 0:02:47]} 9. Nf4 {[%clk 0:02:40]}  h6 {[%clk 0:02:46]} 10. Bxf6 {[%clk 0:02:41]}  Bxf6 {[%clk 0:02:46]} 11. h4 {[%clk 0:02:34]}  c5 {[%clk 0:02:44]} 12. dxc5 {[%clk 0:02:09]}  dxc5 {[%clk 0:02:38]} 13. Qxd8 {[%clk 0:01:45]}  Bxc3+ {[%clk 0:02:26]} 14. bxc3 {[%clk 0:01:46]}  Rxd8 {[%clk 0:02:25]} 15. Rd1 {[%clk 0:01:43]}  Rxd1+ {[%clk 0:02:22]} 16. Kxd1 {[%clk 0:01:44]}  Nc6 {[%clk 0:02:20]} 17. e3 {[%clk 0:01:30]}  Ne5 {[%clk 0:02:13]} 18. Be2 {[%clk 0:01:23]}  Bd7 {[%clk 0:01:54]} 19. h5 {[%clk 0:01:23]}  Rd8 {[%clk 0:01:49]} 20. Kc1 {[%clk 0:01:14]}  Be8 {[%clk 0:01:40]} 21. Rd1 {[%clk 0:01:10]}  Rxd1+ {[%clk 0:01:37]} 22. Kxd1 {[%clk 0:01:08]}  Bf7 {[%clk 0:01:37]} 23. Nd5 {[%clk 0:01:07]}  Kf8 {[%clk 0:01:27]} 24. Kc2 {[%clk 0:01:07]}  b5 {[%clk 0:01:19]} 25. Nc7 {[%clk 0:00:45]}  bxc4 {[%clk 0:01:14]} 26. Na6 {[%clk 0:00:39]}  Ke7 {[%clk 0:01:10]} 27. Nxc5 {[%clk 0:00:38]}  Kd6 {[%clk 0:01:10]} 28. Na4 {[%clk 0:00:32]}  Nd3 {[%clk 0:00:53]} 29. f3 {[%clk 0:00:23]}  exf3 {[%clk 0:00:44]} 30. Bxd3 {[%clk 0:00:23]}  cxd3+ {[%clk 0:00:43]} 31. Kxd3 {[%clk 0:00:24]}  Bxa2 {[%clk 0:00:43]} 32. Nb2 {[%clk 0:00:20]}  a5 {[%clk 0:00:40]} 33. c4 {[%clk 0:00:19]}  Kc5 {[%clk 0:00:37]} 0-1


[Site "https://www.chess.com"]

[Event "Titled Tuesday Blitz March 07 Late 2023"]
[White "Do Nascimento,Christian Almeida"]
[Black "Delgado Rosas, Fatima Alexandra"]
[WhiteFideId "2143801"]
[BlackFideId "6603963"]
[WhiteElo "2125"]
[BlackElo "2331"]
[Result "1-0"]
[Round "03"]
[TimeControl "180+2"]
[Date "2023.03.07"]
[WhiteClock "0:02:36"]
[BlackClock "0:02:42"]

1. e4 {[%clk 0:02:57]}  c6 {[%clk 0:02:54]} 2. d4 {[%clk 0:02:55]}  d5 {[%clk 0:02:55]} 3. Nc3 {[%clk 0:02:56]}  dxe4 {[%clk 0:02:55]} 4. Nxe4 {[%clk 0:02:57]}  Nf6 {[%clk 0:02:55]} 5. Ng5 {[%clk 0:02:57]}  h6 {[%clk 0:02:55]} 6. N5f3 {[%clk 0:02:56]}  Bg4 {[%clk 0:02:54]} 7. Bc4 {[%clk 0:02:47]}  e6 {[%clk 0:02:54]} 8. h3 {[%clk 0:02:47]}  Bh5 {[%clk 0:02:52]} 9. g4 {[%clk 0:02:46]}  Bg6 {[%clk 0:02:52]} 10. Ne5 {[%clk 0:02:47]}  Bh7 {[%clk 0:02:51]} 11. Qe2 {[%clk 0:02:39]}  Bd6 {[%clk 0:02:51]} 12. Nxf7 {[%clk 0:02:37]}  Kxf7 {[%clk 0:02:41]} 13. Qxe6+ {[%clk 0:02:36]}  Kg6 {[%clk 0:02:42]} 14. Qf7# {[%clk 0:02:36]} 1-0


[Site "https://www.chess.com"]

[Event "Titled Tuesday Blitz March 07 Late 2023"]
[White "Carbone, Diego"]
[Black "Bach, Matthias"]
[WhiteFideId "3002179"]
[BlackFideId "4603168"]
[WhiteElo "2266"]
[BlackElo "2165"]
[Result "1/2-1/2"]
[Round "03"]
[TimeControl "180+2"]
[Date "2023.03.07"]
[WhiteClock "0:00:03"]
[BlackClock "0:00:04"]

1. d4 {[%clk 0:03:00]}  Nf6 {[%clk 0:02:56]} 2. c4 {[%clk 0:03:01]}  c5 {[%clk 0:02:56]} 3. d5 {[%clk 0:03:01]}  e6 {[%clk 0:02:57]} 4. Nc3 {[%clk 0:03:01]}  exd5 {[%clk 0:02:57]} 5. cxd5 {[%clk 0:03:01]}  d6 {[%clk 0:02:57]} 6. e4 {[%clk 0:03:01]}  g6 {[%clk 0:02:58]} 7. Nge2 {[%clk 0:03:02]}  Bg7 {[%clk 0:02:56]} 8. Ng3 {[%clk 0:03:02]}  O-O {[%clk 0:02:52]} 9. Be2 {[%clk 0:03:02]}  h5 {[%clk 0:02:51]} 10. O-O {[%clk 0:03:01]}  h4 {[%clk 0:02:50]} 11. Nh1 {[%clk 0:03:01]}  Nbd7 {[%clk 0:02:29]} 12. a4 {[%clk 0:02:52]}  h3 {[%clk 0:02:27]} 13. g4 {[%clk 0:02:50]}  Ne5 {[%clk 0:02:05]} 14. f3 {[%clk 0:02:45]}  Nh7 {[%clk 0:01:56]} 15. f4 {[%clk 0:02:36]}  Nd7 {[%clk 0:01:51]} 16. Be3 {[%clk 0:02:36]}  f5 {[%clk 0:01:47]} 17. exf5 {[%clk 0:02:31]}  gxf5 {[%clk 0:01:47]} 18. g5 {[%clk 0:02:31]}  Re8 {[%clk 0:01:43]} 19. Bf2 {[%clk 0:02:29]}  Qe7 {[%clk 0:01:38]} 20. Bd3 {[%clk 0:02:26]}  Ndf8 {[%clk 0:01:37]} 21. Re1 {[%clk 0:02:21]}  Qf7 {[%clk 0:01:35]} 22. Rxe8 {[%clk 0:02:20]}  Qxe8 {[%clk 0:01:35]} 23. Ng3 {[%clk 0:02:21]}  Qf7 {[%clk 0:01:30]} 24. Qc2 {[%clk 0:02:20]}  Bd4 {[%clk 0:01:12]} 25. Bxd4 {[%clk 0:02:12]}  cxd4 {[%clk 0:01:11]} 26. Nce2 {[%clk 0:02:13]}  Qe7 {[%clk 0:01:09]} 27. Qd2 {[%clk 0:02:04]}  Ng6 {[%clk 0:01:04]} 28. Nxf5 {[%clk 0:01:57]}  Bxf5 {[%clk 0:01:02]} 29. Bxf5 {[%clk 0:01:58]}  Nh4 {[%clk 0:01:02]} 30. Nxd4 {[%clk 0:01:42]}  Re8 {[%clk 0:00:49]} 31. Be6+ {[%clk 0:01:37]}  Kh8 {[%clk 0:00:47]} 32. Qc3 {[%clk 0:01:35]}  Qg7 {[%clk 0:00:43]} 33. Kh1 {[%clk 0:01:07]}  Rf8 {[%clk 0:00:40]} 34. Rf1 {[%clk 0:01:05]}  Nxg5 {[%clk 0:00:37]} 35. Rg1 {[%clk 0:00:30]}  Rxf4 {[%clk 0:00:32]} 36. Qc8+ {[%clk 0:00:25]}  Rf8 {[%clk 0:00:25]} 37. Rxg5 {[%clk 0:00:24]}  Rxc8 {[%clk 0:00:23]} 38. Rxg7 {[%clk 0:00:23]}  Rc4 {[%clk 0:00:20]} 39. Rg4 {[%clk 0:00:13]}  Ng2 {[%clk 0:00:19]} 40. Kg1 {[%clk 0:00:07]}  Rxa4 {[%clk 0:00:16]} 41. Kf2 {[%clk 0:00:05]}  Ra2 {[%clk 0:00:15]} 42. Rg8+ {[%clk 0:00:04]}  Kh7 {[%clk 0:00:15]} 43. Kg3 {[%clk 0:00:05]}  Rxb2 {[%clk 0:00:14]} 44. Nf5 {[%clk 0:00:05]}  Rb3+ {[%clk 0:00:13]} 45. Kg4 {[%clk 0:00:04]}  Ne3+ {[%clk 0:00:12]} 46. Nxe3 {[%clk 0:00:03]}  Rxe3 {[%clk 0:00:13]} 47. Rb8 {[%clk 0:00:03]}  Rb3 {[%clk 0:00:12]} 48. Ra8 {[%clk 0:00:03]}  a6 {[%clk 0:00:12]} 49. Rd8 {[%clk 0:00:03]}  a5 {[%clk 0:00:12]} 50. Rd7+ {[%clk 0:00:04]}  Kg6 {[%clk 0:00:11]} 51. Rxd6 {[%clk 0:00:05]}  a4 {[%clk 0:00:09]} 52. Rd7 {[%clk 0:00:05]}  a3 {[%clk 0:00:08]} 53. d6 {[%clk 0:00:05]}  Rb4+ {[%clk 0:00:08]} 54. Kg3 {[%clk 0:00:05]}  Kf6 {[%clk 0:00:08]} 55. Bg8 {[%clk 0:00:03]}  Rd4 {[%clk 0:00:08]} 56. Rf7+ {[%clk 0:00:03]}  Kg6 {[%clk 0:00:07]} 57. Rxb7 {[%clk 0:00:03]}  Rxd6 {[%clk 0:00:07]} 58. Ra7 {[%clk 0:00:03]}  Rd3+ {[%clk 0:00:07]} 59. Kg4 {[%clk 0:00:03]}  Kf6 {[%clk 0:00:05]} 60. Ra6+ {[%clk 0:00:02]}  Ke5 {[%clk 0:00:06]} 61. Bh7 {[%clk 0:00:02]}  Rc3 {[%clk 0:00:05]} 62. Bg8 {[%clk 0:00:01]}  Kd4 {[%clk 0:00:05]} 63. Ra5 {[%clk 0:00:02]}  Ke3 {[%clk 0:00:05]} 64. Ra4 {[%clk 0:00:03]}  Kd2 {[%clk 0:00:05]} 65. Kh4 {[%clk 0:00:03]}  Kc1 {[%clk 0:00:05]} 66. Kg4 {[%clk 0:00:03]}  Kb2 {[%clk 0:00:05]} 67. Bf7 {[%clk 0:00:02]}  Kc2 {[%clk 0:00:04]} 68. Be6 {[%clk 0:00:03]}  Kb2 {[%clk 0:00:04]} 69. Bf5 {[%clk 0:00:02]}  a2 {[%clk 0:00:03]} 70. Kh4 {[%clk 0:00:02]}  a1=Q {[%clk 0:00:02]} 71. Rxa1 {[%clk 0:00:02]}  Kxa1 {[%clk 0:00:03]} 72. Bxh3 {[%clk 0:00:02]}  Kb2 {[%clk 0:00:04]} 73. Bg4 {[%clk 0:00:02]}  Rc2 {[%clk 0:00:04]} 74. h3 {[%clk 0:00:01]}  Rh2 {[%clk 0:00:03]} 75. Kg5 {[%clk 0:00:02]}  Rxh3 {[%clk 0:00:04]} 76. Bxh3 {[%clk 0:00:03]} 1/2-1/2


[Site "https://www.chess.com"]